[Event "Chess.com Isle of Man Masters"]
[Site "Villa Marina, Douglas, Isle of Man, United Kingdom"]
[Date "2018.10.22"]
[Round "3.11"]
[White "So, Wesley"]
[Black "Huschenbeth, Niclas"]
[Result "1-0"]
[TimeControl "40 moves in 100 minutes, f.b. 20 moves in 50 minutes f.b. 15 minutes with a 30 second increment from move 0"]
[WhiteElo "2776"]
[BlackElo "2589"]

1. d4 {[%clk 01:40:28]} {[%emt 00:00:31]} d5 {[%clk 01:40:53]} {[%emt
00:00:07]} 2. c4 {[%clk 01:40:22]} {[%emt 00:00:37]} e6 {[%clk 01:41:18]}
{[%emt 00:00:04]} 3. Nc3 {[%clk 01:40:20]} {[%emt 00:00:32]} Nf6 {[%clk
01:41:43]} {[%emt 00:00:05]} 4. Nf3 {[%clk 01:33:43]} {[%emt 00:07:07]} c5
{[%clk 01:42:08]} {[%emt 00:00:05]} 5. e3 {[%clk 01:34:10]} {[%emt 00:00:03]}
dxc4 {[%clk 01:41:30]} {[%emt 00:01:08]} 6. Bxc4 {[%clk 01:34:33]} {[%emt
00:00:06]} a6 {[%clk 01:41:56]} {[%emt 00:00:04]} 7. O-O {[%clk 01:34:52]}
{[%emt 00:00:10]} b5 {[%clk 01:42:18]} {[%emt 00:00:08]} 8. Be2 {[%clk
01:35:08]} {[%emt 00:00:14]} Nbd7 {[%clk 01:42:21]} {[%emt 00:00:28]} 9. d5
{[%clk 01:32:44]} {[%emt 00:02:54]} exd5 {[%clk 01:41:48]} {[%emt 00:01:03]} 10.
Nxd5 {[%clk 01:32:28]} {[%emt 00:00:46]} Bb7 {[%clk 01:41:32]} {[%emt
00:00:45]} 11. Nxf6+ {[%clk 01:32:51]} {[%emt 00:00:08]} Qxf6 {[%clk 01:41:38]}
{[%emt 00:00:24]} 12. a4 {[%clk 01:32:44]} {[%emt 00:00:37]} b4 {[%clk
01:41:58]} {[%emt 00:00:09]} 13. Qc2 {[%clk 01:23:48]} {[%emt 00:09:27]} Be7
{[%clk 01:24:50]} {[%emt 00:17:38]} 14. e4 {[%clk 01:09:53]} {[%emt 00:14:25]}
Qe6 {[%clk 01:14:52]} {[%emt 00:10:28]} 15. Re1 {[%clk 01:01:09]} {[%emt
00:09:14]} O-O {[%clk 01:11:12]} {[%emt 00:04:11]} 16. Bc4 {[%clk 00:58:23]}
{[%emt 00:03:16]} Qg6 {[%clk 01:10:20]} {[%emt 00:01:21]} 17. Bf4 {[%clk
00:54:27]} {[%emt 00:04:25]} Nb6 {[%clk 01:06:27]} {[%emt 00:04:23]} 18. Bf1
{[%clk 00:47:44]} {[%emt 00:07:13]} a5 {[%clk 01:05:33]} {[%emt 00:01:25]} 19.
Bc7 {[%clk 00:41:51]} {[%emt 00:06:22]} Rac8 {[%clk 00:50:47]} {[%emt
00:15:17]} 20. Bxb6 {[%clk 00:39:44]} {[%emt 00:02:38]} Qxb6 {[%clk 00:51:12]}
{[%emt 00:00:05]} 21. Bc4 {[%clk 00:40:09]} {[%emt 00:00:05]} Qc7 {[%clk
00:42:27]} {[%emt 00:09:14]} 22. Qb3 {[%clk 00:33:58]} {[%emt 00:06:41]} Qf4
{[%clk 00:31:49]} {[%emt 00:11:08]} 23. g3 {[%clk 00:25:56]} {[%emt 00:08:32]}
Qc7 {[%clk 00:23:58]} {[%emt 00:08:21]} 24. Rad1 {[%clk 00:16:35]} {[%emt
00:09:51]} Bf6 {[%clk 00:23:25]} {[%emt 00:01:03]} 25. Re3 {[%clk 00:12:15]}
{[%emt 00:04:49]} Rfe8 {[%clk 00:17:24]} {[%emt 00:06:32]} 26. Rde1 {[%clk
00:10:26]} {[%emt 00:02:20]} Bd4 {[%clk 00:16:36]} {[%emt 00:01:17]} 27. R3e2
{[%clk 00:10:55]} {[%emt 00:00:02]} Rcd8 {[%clk 00:14:18]} {[%emt 00:02:49]} 28.
Qc2 {[%clk 00:10:59]} {[%emt 00:00:25]} h6 {[%clk 00:12:36]} {[%emt 00:02:13]}
29. Nh4 {[%clk 00:10:02]} {[%emt 00:01:26]} Bc8 {[%clk 00:10:16]} {[%emt
00:02:49]} 30. Kg2 {[%clk 00:09:21]} {[%emt 00:01:12]} Bg4 {[%clk 00:06:55]}
{[%emt 00:03:51]} 31. f3 {[%clk 00:09:37]} {[%emt 00:00:14]} Bc8 {[%clk
00:07:14]} {[%emt 00:00:12]} 32. Nf5 {[%clk 00:07:32]} {[%emt 00:02:35]} Bxf5
{[%clk 00:07:02]} {[%emt 00:00:42]} 33. exf5 {[%clk 00:07:58]} {[%emt
00:00:03]} Rxe2+ {[%clk 00:06:23]} {[%emt 00:01:10]} 34. Rxe2 {[%clk 00:07:50]}
{[%emt 00:00:38]} Bf6 {[%clk 00:05:14]} {[%emt 00:01:39]} 35. Qe4 {[%clk
00:07:03]} {[%emt 00:01:17]} Kh7 {[%clk 00:03:18]} {[%emt 00:02:26]} 36. b3
{[%clk 00:06:54]} {[%emt 00:00:38]} Kg8 {[%clk 00:01:48]} {[%emt 00:02:01]} 37.
h4 {[%clk 00:06:48]} {[%emt 00:00:35]} Qd7 {[%clk 00:01:59]} {[%emt 00:00:19]}
38. f4 {[%clk 00:03:02]} {[%emt 00:04:16]} Qc7 {[%clk 00:01:45]} {[%emt
00:00:45]} 39. Kh3 {[%clk 00:03:07]} {[%emt 00:00:23]} Kh7 {[%clk 00:01:59]}
{[%emt 00:00:18]} 40. Qf3 {[%clk 00:01:11]} {[%emt 00:02:26]} Qd7 {[%clk
00:01:01]} {[%emt 00:01:27]} 41. g4 {[%clk 00:00:36]} {[%emt 00:01:04]} Kg8
{[%clk 00:37:04]} {[%emt 00:14:29]} 42. Qe4 {[%clk 00:43:26]} {[%emt 00:07:39]}
Kh8 {[%clk 00:21:33]} {[%emt 00:16:01]} 43. g5 {[%clk 00:38:10]} {[%emt
00:05:45]} Bc3 {[%clk 00:22:00]} {[%emt 00:00:03]} 44. Kg3 {[%clk 00:37:05]}
{[%emt 00:01:35]} h5 {[%clk 00:22:23]} {[%emt 00:00:08]} 45. Qe7 {[%clk
00:33:04]} {[%emt 00:04:31]} Qd1 {[%clk 00:15:30]} {[%emt 00:07:22]} 46. Kg2
{[%clk 00:31:05]} {[%emt 00:02:29]} 1-0

[Event "Chess.com Isle of Man Masters"]
[Site "Villa Marina, Douglas, Isle of Man, United Kingdom"]
[Date "2018.10.22"]
[Round "3.12"]
[White "Svane, Rasmus"]
[Black "Anand, Viswanathan"]
[Result "1/2-1/2"]
[TimeControl "40 moves in 100 minutes, f.b. 20 moves in 50 minutes f.b. 15 minutes with a 30 second increment from move 0"]
[WhiteElo "2595"]
[BlackElo "2771"]

1. d4 {[%clk 01:38:22]} {[%emt 00:02:27]} Nf6 {[%clk 01:40:52]} {[%emt
00:00:18]} 2. c4 {[%clk 01:38:48]} {[%emt 00:00:05]} e6 {[%clk 01:41:16]}
{[%emt 00:00:06]} 3. g3 {[%clk 01:39:13]} {[%emt 00:00:04]} Bb4+ {[%clk
01:41:40]} {[%emt 00:00:07]} 4. Bd2 {[%clk 01:38:47]} {[%emt 00:00:56]} Qe7
{[%clk 01:41:42]} {[%emt 00:00:28]} 5. Bg2 {[%clk 01:38:26]} {[%emt 00:00:51]}
Nc6 {[%clk 01:41:57]} {[%emt 00:00:15]} 6. a3 {[%clk 01:29:12]} {[%emt
00:09:44]} Bxd2+ {[%clk 01:41:38]} {[%emt 00:00:49]} 7. Qxd2 {[%clk 01:29:37]}
{[%emt 00:00:05]} O-O {[%clk 01:38:30]} {[%emt 00:03:37]} 8. e3 {[%clk
01:12:57]} {[%emt 00:17:12]} d6 {[%clk 01:25:09]} {[%emt 00:13:50]} 9. Ne2
{[%clk 01:11:34]} {[%emt 00:01:53]} e5 {[%clk 01:25:08]} {[%emt 00:00:32]} 10.
O-O {[%clk 01:08:01]} {[%emt 00:04:03]} Re8 {[%clk 01:20:27]} {[%emt 00:05:11]}
11. d5 {[%clk 00:50:06]} {[%emt 00:18:26]} Nb8 {[%clk 01:19:26]} {[%emt
00:01:30]} 12. e4 {[%clk 00:48:37]} {[%emt 00:01:59]} a5 {[%clk 01:17:36]}
{[%emt 00:02:20]} 13. Nbc3 {[%clk 00:48:35]} {[%emt 00:00:32]} Na6 {[%clk
01:05:57]} {[%emt 00:12:09]} 14. b4 {[%clk 00:47:32]} {[%emt 00:01:34]} Bd7
{[%clk 01:05:02]} {[%emt 00:01:25]} 15. Rab1 {[%clk 00:45:29]} {[%emt
00:02:32]} Reb8 {[%clk 01:00:11]} {[%emt 00:05:20]} 16. Nc1 {[%clk 00:42:06]}
{[%emt 00:03:54]} axb4 {[%clk 00:58:33]} {[%emt 00:02:08]} 17. axb4 {[%clk
00:42:32]} {[%emt 00:00:04]} c5 {[%clk 00:58:41]} {[%emt 00:00:22]} 18. dxc6
{[%clk 00:29:17]} {[%emt 00:13:46]} bxc6 {[%clk 00:58:46]} {[%emt 00:00:24]} 19.
Nd3 {[%clk 00:29:36]} {[%emt 00:00:10]} Nc7 {[%clk 00:57:07]} {[%emt 00:02:08]}
20. Rfd1 {[%clk 00:19:33]} {[%emt 00:10:34]} Ne6 {[%clk 00:51:34]} {[%emt
00:06:03]} 21. Ne2 {[%clk 00:18:33]} {[%emt 00:01:30]} Nc7 {[%clk 00:49:12]}
{[%emt 00:02:52]} 22. Nc3 {[%clk 00:17:40]} {[%emt 00:01:24]} Ne6 {[%clk
00:49:26]} {[%emt 00:00:16]} 23. Ne2 {[%clk 00:18:05]} {[%emt 00:00:04]} Nc7
{[%clk 00:49:23]} {[%emt 00:00:33]} 24. Nc3 1/2-1/2

[Event "Chess.com Isle of Man Masters"]
[Site "Villa Marina, Douglas, Isle of Man, United Kingdom"]
[Date "2018.10.22"]
[Round "3.13"]
[White "Grischuk, Alexander"]
[Black "Kaidanov, Gregory"]
[Result "1-0"]
[TimeControl "40 moves in 100 minutes, f.b. 20 moves in 50 minutes f.b. 15 minutes with a 30 second increment from move 0"]
[WhiteElo "2769"]
[BlackElo "2544"]

1. e4 {[%clk 01:37:18]} {[%emt 00:03:41]} e5 {[%clk 01:40:37]} {[%emt
00:00:23]} 2. Nf3 {[%clk 01:37:44]} {[%emt 00:00:05]} Nc6 {[%clk 01:40:19]}
{[%emt 00:00:48]} 3. Bb5 {[%clk 01:38:08]} {[%emt 00:00:05]} a6 {[%clk
01:40:35]} {[%emt 00:00:14]} 4. Ba4 {[%clk 01:38:34]} {[%emt 00:00:04]} Nf6
{[%clk 01:40:51]} {[%emt 00:00:14]} 5. d3 {[%clk 01:38:24]} {[%emt 00:00:40]}
d6 {[%clk 01:40:40]} {[%emt 00:00:41]} 6. c3 {[%clk 01:38:43]} {[%emt
00:00:11]} Be7 {[%clk 01:40:22]} {[%emt 00:00:47]} 7. O-O {[%clk 01:38:28]}
{[%emt 00:00:45]} O-O {[%clk 01:40:47]} {[%emt 00:00:06]} 8. Re1 {[%clk
01:36:36]} {[%emt 00:02:23]} Re8 {[%clk 01:38:34]} {[%emt 00:02:42]} 9. h3
{[%clk 01:32:43]} {[%emt 00:04:23]} Bf8 {[%clk 01:32:24]} {[%emt 00:06:40]} 10.
c4 {[%clk 01:05:15]} {[%emt 00:27:58]} Nd7 {[%clk 01:25:35]} {[%emt 00:07:20]}
11. Be3 {[%clk 00:51:19]} {[%emt 00:14:26]} g6 {[%clk 01:24:06]} {[%emt
00:01:58]} 12. Nc3 {[%clk 00:46:01]} {[%emt 00:05:48]} Bg7 {[%clk 01:21:57]}
{[%emt 00:02:39]} 13. Bg5 {[%clk 00:33:38]} {[%emt 00:12:54]} f6 {[%clk
01:15:24]} {[%emt 00:07:03]} 14. Be3 {[%clk 00:32:56]} {[%emt 00:01:12]} f5
{[%clk 01:06:14]} {[%emt 00:09:40]} 15. exf5 {[%clk 00:28:31]} {[%emt
00:04:55]} gxf5 {[%clk 01:06:37]} {[%emt 00:00:07]} 16. Bg5 {[%clk 00:25:18]}
{[%emt 00:03:43]} Bf6 {[%clk 01:03:26]} {[%emt 00:03:41]} 17. Bxf6 {[%clk
00:25:32]} {[%emt 00:00:16]} Nxf6 {[%clk 01:03:33]} {[%emt 00:00:22]} 18. d4
{[%clk 00:20:51]} {[%emt 00:05:11]} e4 {[%clk 01:02:37]} {[%emt 00:01:26]} 19.
d5 {[%clk 00:20:23]} {[%emt 00:00:59]} exf3 {[%clk 00:58:58]} {[%emt 00:04:10]}
20. Rxe8+ {[%clk 00:19:39]} {[%emt 00:01:14]} Qxe8 {[%clk 00:58:31]} {[%emt
00:00:56]} 21. dxc6 {[%clk 00:20:01]} {[%emt 00:00:08]} bxc6 {[%clk 00:56:53]}
{[%emt 00:02:09]} 22. Qxf3 {[%clk 00:19:31]} {[%emt 00:01:00]} Bd7 {[%clk
00:57:00]} {[%emt 00:00:23]} 23. c5 {[%clk 00:17:07]} {[%emt 00:02:54]} Qe5
{[%clk 00:49:10]} {[%emt 00:08:19]} 24. Bxc6 {[%clk 00:13:51]} {[%emt
00:03:47]} Bxc6 {[%clk 00:48:39]} {[%emt 00:01:02]} 25. Qxc6 {[%clk 00:14:16]}
{[%emt 00:00:05]} Rb8 {[%clk 00:49:00]} {[%emt 00:00:09]} 26. cxd6 {[%clk
00:13:12]} {[%emt 00:01:33]} cxd6 {[%clk 00:48:53]} {[%emt 00:00:37]} 27. Rb1
{[%clk 00:07:36]} {[%emt 00:06:06]} d5 {[%clk 00:47:05]} {[%emt 00:02:17]} 28.
Rd1 {[%clk 00:03:02]} {[%emt 00:05:05]} d4 {[%clk 00:40:27]} {[%emt 00:07:08]}
29. Qc4+ {[%clk 00:03:09]} {[%emt 00:00:23]} Kg7 {[%clk 00:40:50]} {[%emt
00:00:06]} 30. Na4 {[%clk 00:03:28]} {[%emt 00:00:11]} Rd8 {[%clk 00:39:38]}
{[%emt 00:01:42]} 31. Nc5 {[%clk 00:03:46]} {[%emt 00:00:12]} Kg6 {[%clk
00:39:37]} {[%emt 00:00:32]} 32. Nd3 {[%clk 00:03:46]} {[%emt 00:00:31]} Qd6
{[%clk 00:39:32]} {[%emt 00:00:34]} 33. Re1 {[%clk 00:03:03]} {[%emt 00:01:13]}
1-0

[Event "Chess.com Isle of Man Masters"]
[Site "Villa Marina, Douglas, Isle of Man, United Kingdom"]
[Date "2018.10.22"]
[Round "3.14"]
[White "Antipov, Mikhail Al."]
[Black "Nakamura, Hikaru"]
[Result "1/2-1/2"]
[TimeControl "40 moves in 100 minutes, f.b. 20 moves in 50 minutes f.b. 15 minutes with a 30 second increment from move 0"]
[WhiteElo "2593"]
[BlackElo "2763"]

1. e4 {[%clk 01:40:59]} c6 {[%clk 01:40:52]} {[%emt 00:00:08]} 2. d4 {[%clk
01:40:52]} {[%emt 00:00:37]} d5 {[%clk 01:41:16]} {[%emt 00:00:06]} 3. e5
{[%clk 01:41:17]} {[%emt 00:00:05]} Bf5 {[%clk 01:41:40]} {[%emt 00:00:05]} 4.
h4 {[%clk 01:41:30]} {[%emt 00:00:17]} h6 {[%clk 01:41:59]} {[%emt 00:00:11]} 5.
g4 {[%clk 01:40:21]} {[%emt 00:01:39]} Be4 {[%clk 01:42:20]} {[%emt 00:00:09]}
6. f3 {[%clk 01:40:35]} {[%emt 00:00:17]} Bh7 {[%clk 01:42:44]} {[%emt
00:00:06]} 7. c4 {[%clk 01:16:14]} {[%emt 00:24:52]} e6 {[%clk 01:40:19]}
{[%emt 00:02:54]} 8. Nc3 {[%clk 01:16:30]} {[%emt 00:00:15]} dxc4 {[%clk
01:21:27]} {[%emt 00:19:23]} 9. Bxc4 {[%clk 01:14:11]} {[%emt 00:02:48]} Nd7
{[%clk 01:21:51]} {[%emt 00:00:05]} 10. f4 {[%clk 00:57:22]} {[%emt 00:17:18]}
Nb6 {[%clk 01:18:19]} {[%emt 00:04:03]} 11. Bb3 {[%clk 00:57:47]} {[%emt
00:00:06]} Ne7 {[%clk 01:18:31]} {[%emt 00:00:18]} 12. h5 {[%clk 00:44:03]}
{[%emt 00:14:14]} Ned5 {[%clk 01:13:42]} {[%emt 00:05:18]} 13. Nge2 {[%clk
00:44:23]} {[%emt 00:00:11]} Be7 {[%clk 01:04:14]} {[%emt 00:09:59]} 14. O-O
{[%clk 00:42:58]} {[%emt 00:01:54]} Qd7 {[%clk 01:01:48]} {[%emt 00:02:56]} 15.
Nxd5 {[%clk 00:41:01]} {[%emt 00:02:27]} Nxd5 {[%clk 00:55:05]} {[%emt
00:07:13]} 16. Nc3 {[%clk 00:38:20]} {[%emt 00:03:11]} O-O {[%clk 00:49:35]}
{[%emt 00:05:59]} 17. Qf3 {[%clk 00:35:20]} {[%emt 00:03:30]} f6 {[%clk
00:39:32]} {[%emt 00:10:33]} 18. Bd2 {[%clk 00:30:41]} {[%emt 00:05:10]} Kh8
{[%clk 00:37:55]} {[%emt 00:02:07]} 19. Rad1 {[%clk 00:30:27]} {[%emt
00:00:43]} Rad8 {[%clk 00:36:52]} {[%emt 00:01:33]} 20. Bc1 {[%clk 00:17:57]}
{[%emt 00:13:01]} Qc7 {[%clk 00:26:02]} {[%emt 00:11:20]} 21. Qg3 {[%clk
00:16:34]} {[%emt 00:01:53]} b5 {[%clk 00:22:39]} {[%emt 00:03:53]} 22. Kh2
{[%clk 00:12:26]} {[%emt 00:04:38]} a5 {[%clk 00:16:23]} {[%emt 00:06:46]} 23.
a3 {[%clk 00:09:11]} {[%emt 00:03:46]} a4 {[%clk 00:15:49]} {[%emt 00:01:04]}
24. Bxd5 {[%clk 00:07:56]} {[%emt 00:01:45]} cxd5 {[%clk 00:16:13]} {[%emt
00:00:05]} 25. g5 {[%clk 00:08:12]} {[%emt 00:00:13]} fxg5 {[%clk 00:04:44]}
{[%emt 00:11:59]} 26. fxg5 {[%clk 00:08:38]} {[%emt 00:00:04]} hxg5 {[%clk
00:05:11]} {[%emt 00:00:03]} 27. Bxg5 {[%clk 00:08:50]} {[%emt 00:00:18]} Bxg5
{[%clk 00:05:29]} {[%emt 00:00:12]} 28. Qxg5 {[%clk 00:09:11]} {[%emt
00:00:09]} b4 {[%clk 00:05:58]} 29. Nb5 {[%clk 00:01:40]} {[%emt 00:08:02]}
Qc2+ {[%clk 00:04:20]} {[%emt 00:02:08]} 30. Rd2 {[%clk 00:02:02]} {[%emt
00:00:08]} Qxd2+ {[%clk 00:04:24]} {[%emt 00:00:26]} 31. Qxd2 {[%clk 00:02:28]}
{[%emt 00:00:04]} Rxf1 {[%clk 00:04:50]} {[%emt 00:00:04]} 32. Nd6 {[%clk
00:01:11]} {[%emt 00:01:46]} bxa3 {[%clk 00:04:04]} {[%emt 00:01:16]} 33. bxa3
{[%clk 00:01:23]} {[%emt 00:00:19]} Rdf8 {[%clk 00:04:11]} {[%emt 00:00:23]} 34.
Kg2 {[%clk 00:01:12]} {[%emt 00:00:41]} R1f4 {[%clk 00:03:46]} {[%emt
00:00:55]} 35. Kg3 {[%clk 00:00:40]} {[%emt 00:01:03]} Rf3+ {[%clk 00:03:53]}
{[%emt 00:00:22]} 36. Kg4 {[%clk 00:00:32]} {[%emt 00:00:39]} Rxa3 {[%clk
00:02:46]} {[%emt 00:01:37]} 37. h6 {[%clk 00:00:39]} {[%emt 00:00:23]} Raf3
{[%clk 00:02:36]} {[%emt 00:00:40]} 38. hxg7+ {[%clk 00:00:46]} {[%emt
00:00:23]} Kxg7 {[%clk 00:03:05]} 39. Ne8+ {[%clk 00:00:57]} {[%emt 00:00:19]}
Kh8 {[%clk 00:01:21]} {[%emt 00:02:14]} 1/2-1/2

[Event "Chess.com Isle of Man Masters"]
[Site "Villa Marina, Douglas, Isle of Man, United Kingdom"]
[Date "2018.10.22"]
[Round "3.15"]
[White "Karjakin, Sergey"]
[Black "Lomasov, Semen"]
[Result "1-0"]
[TimeControl "40 moves in 100 minutes, f.b. 20 moves in 50 minutes f.b. 15 minutes with a 30 second increment from move 0"]
[WhiteElo "2760"]
[BlackElo "2540"]

1. e4 {[%clk 01:37:43]} {[%emt 00:03:16]} e6 {[%clk 01:40:53]} {[%emt
00:00:07]} 2. d4 {[%clk 01:38:07]} {[%emt 00:00:06]} d5 {[%clk 01:41:19]}
{[%emt 00:00:04]} 3. Nc3 {[%clk 01:38:31]} {[%emt 00:00:06]} Nf6 {[%clk
01:41:45]} {[%emt 00:00:04]} 4. e5 {[%clk 01:38:56]} {[%emt 00:00:05]} Nfd7
{[%clk 01:42:11]} {[%emt 00:00:04]} 5. f4 {[%clk 01:39:20]} {[%emt 00:00:05]}
c5 {[%clk 01:42:37]} {[%emt 00:00:04]} 6. Nf3 {[%clk 01:39:45]} {[%emt
00:00:05]} Nc6 {[%clk 01:43:04]} {[%emt 00:00:04]} 7. Be3 {[%clk 01:40:08]}
{[%emt 00:00:07]} a6 {[%clk 01:43:30]} {[%emt 00:00:04]} 8. a3 {[%clk
01:34:26]} {[%emt 00:06:11]} cxd4 {[%clk 01:40:30]} {[%emt 00:03:30]} 9. Nxd4
{[%clk 01:34:32]} {[%emt 00:00:23]} Bc5 {[%clk 01:40:57]} {[%emt 00:00:03]} 10.
Qd2 {[%clk 01:33:21]} {[%emt 00:01:41]} Qc7 {[%clk 01:33:34]} {[%emt 00:07:53]}
11. O-O-O {[%clk 01:23:14]} {[%emt 00:10:36]} Nxd4 {[%clk 01:27:04]} {[%emt
00:07:00]} 12. Bxd4 {[%clk 01:23:38]} {[%emt 00:00:06]} b5 {[%clk 01:27:25]}
{[%emt 00:00:09]} 13. h4 {[%clk 01:06:41]} {[%emt 00:17:27]} O-O {[%clk
01:12:44]} {[%emt 00:15:12]} 14. Rh3 {[%clk 01:02:59]} {[%emt 00:04:11]} Rb8
{[%clk 01:03:09]} {[%emt 00:10:05]} 15. Bxc5 {[%clk 00:57:56]} {[%emt
00:05:33]} Nxc5 {[%clk 00:59:34]} {[%emt 00:04:04]} 16. b4 {[%clk 00:42:17]}
{[%emt 00:16:09]} Nd7 {[%clk 00:59:31]} {[%emt 00:00:34]} 17. Ne2 {[%clk
00:42:19]} {[%emt 00:00:28]} Nb6 {[%clk 00:39:48]} {[%emt 00:20:13]} 18. Nd4
{[%clk 00:42:36]} {[%emt 00:00:12]} Bd7 {[%clk 00:38:28]} {[%emt 00:01:51]} 19.
h5 {[%clk 00:40:27]} {[%emt 00:02:38]} f6 {[%clk 00:31:36]} {[%emt 00:07:22]}
20. Re3 {[%clk 00:36:23]} {[%emt 00:04:34]} fxe5 {[%clk 00:20:52]} {[%emt
00:11:14]} 21. Rxe5 {[%clk 00:36:44]} {[%emt 00:00:09]} Na4 {[%clk 00:20:48]}
{[%emt 00:00:34]} 22. Nxe6 {[%clk 00:22:24]} {[%emt 00:14:50]} Bxe6 {[%clk
00:21:09]} {[%emt 00:00:09]} 23. Rxe6 {[%clk 00:22:50]} {[%emt 00:00:03]} Rbc8
{[%clk 00:16:11]} {[%emt 00:05:28]} 24. Rde1 {[%clk 00:19:14]} {[%emt
00:04:06]} Nc3 {[%clk 00:14:55]} {[%emt 00:01:47]} 25. Bd3 {[%clk 00:18:16]}
{[%emt 00:01:27]} a5 {[%clk 00:08:32]} {[%emt 00:06:53]} 26. h6 {[%clk
00:17:50]} {[%emt 00:00:56]} gxh6 {[%clk 00:08:25]} {[%emt 00:00:37]} 27. Re7
{[%clk 00:15:11]} {[%emt 00:03:09]} Qb6 {[%clk 00:08:19]} {[%emt 00:00:37]} 28.
Qe3 {[%clk 00:13:12]} {[%emt 00:02:28]} Qxe3+ {[%clk 00:07:37]} {[%emt
00:01:12]} 29. R1xe3 {[%clk 00:13:41]} {[%emt 00:00:02]} Rxf4 {[%clk 00:07:57]}
{[%emt 00:00:10]} 30. bxa5 {[%clk 00:14:03]} {[%emt 00:00:08]} b4 {[%clk
00:03:32]} {[%emt 00:04:55]} 31. Re8+ {[%clk 00:12:14]} {[%emt 00:02:19]} Rxe8
{[%clk 00:04:00]} {[%emt 00:00:02]} 32. Rxe8+ {[%clk 00:12:39]} {[%emt
00:00:05]} Kf7 {[%clk 00:04:26]} {[%emt 00:00:04]} 33. Rc8 {[%clk 00:13:04]}
{[%emt 00:00:05]} Rh4 {[%clk 00:03:11]} {[%emt 00:01:45]} 34. axb4 {[%clk
00:12:23]} {[%emt 00:01:10]} Na2+ {[%clk 00:03:26]} {[%emt 00:00:16]} 35. Kb2
{[%clk 00:12:48]} {[%emt 00:00:05]} Nxb4 {[%clk 00:03:53]} {[%emt 00:00:03]} 36.
Bb5 {[%clk 00:13:09]} {[%emt 00:00:08]} Rg4 {[%clk 00:00:34]} {[%emt 00:03:49]}
37. Kb3 {[%clk 00:12:55]} {[%emt 00:00:44]} 1-0